{"text_format":"3","workbook":"xlsx","n_sheets":5,"sheets":["Factură","Clienți","Facturi - principale","Detalii factură","Despre instrumentul de monitori"],"not_rendered":{"defined_names":8},"read":"whole","date_system":"1900"}

{"sheet":"Factură","index":0,"n_rows":39,"n_cols":7,"rows_kept":39,"merged":[[1,1,1,2],[1,3,1,4],[1,5,1,6],[2,1,2,2],[2,3,2,4],[2,5,2,6],[3,3,3,4],[4,3,4,4],[5,3,5,4],[37,1,37,4],[38,1,38,4]]}
[null,"Numele firmei"]
[null,"Adresă poștală",null,"T: Număr de telefon",null,"E-mail"]
[null,"Localitate, județ, cod poștal",null,"F: Număr de fax",null,"Site web"]
[null,"Facturat către:",{"$f":"IFERROR(VLOOKUP(VLOOKUP(rngFactură,FacturiPrincipale[],2,FALSE),ListăClienți[],3,TRUE),\"\")","v":"Contoso, Ltd"},{"$f":"\"Telefon: \"&IFERROR(VLOOKUP(VLOOKUP(rngFactură,FacturiPrincipale[],2,FALSE),ListăClienți[],9,FALSE),\"\")","v":"Telefon: 432 555 0189"},null,"Nr. factură:","3-456-2"]
[null,"Adresa:",{"$f":"IFERROR(IF((VLOOKUP(VLOOKUP(rngFactură,FacturiPrincipale[],2,FALSE),ListăClienți[],5,FALSE))=\"\",\"\",(VLOOKUP(VLOOKUP(rngFactură,FacturiPrincipale[],2,FALSE),ListăClienți[],5,FALSE))),\"\")","v":"Aleea Castanilor 567"},{"$f":"\"Fax:     \"&IFERROR(VLOOKUP(VLOOKUP(rngFactură,FacturiPrincipale[],2,FALSE),ListăClienți[],11,FALSE),\"\")","v":"Fax:     432 555 0123"},null,"Data facturii:",{"$f":"IFERROR(IF(VLOOKUP(rngFactură,FacturiPrincipale[],3,FALSE)=\"\",\"\",VLOOKUP(rngFactură,FacturiPrincipale[],3,FALSE)),\"\")","v":{"v":43685,"d":"4368500.00%"}}]
[null,null,{"$f":"IFERROR(VLOOKUP(VLOOKUP(rngFactură,FacturiPrincipale[],2,FALSE),ListăClienți[],6,FALSE)&\", \"& VLOOKUP(VLOOKUP(G4,FacturiPrincipale[],2,FALSE),ListăClienți[],7,FALSE)&\" \"&VLOOKUP(VLOOKUP(G4,FacturiPrincipale[],2,FALSE),ListăClienți[],8,FALSE),\"\")","v":"Moreni, DB 098765"},{"$f":"\"E-mail: \"&IFERROR(VLOOKUP(VLOOKUP(rngFactură,FacturiPrincipale[],2,FALSE),ListăClienți[],10,FALSE),\"\")","v":"E-mail: cineva@example.com"}]
[null,{"$f":"\"Invoice For: \"&IFERROR(VLOOKUP(rngFactură,FacturiPrincipale[],4),\"\")","v":"Invoice For: Proiectul 2"}]
[null,"Nr. articol","Descriere","Cantitate","Preț unitar","Reducere","Preț"]
[null,{"$f":"IFERROR(INDEX(DetaliiFactură[],SMALL(IF(DetaliiFactură[Nr. factură]=rngFactură,ROW(DetaliiFactură[])-ROW(DetaliiFactură[#Headers])), ROW(1:1)), MATCH($B$8, DetaliiFactură[#Headers], 0)),\"\")","v":"Z4567"},{"$f":"IFERROR(INDEX(DetaliiFactură[],SMALL(IF(DetaliiFactură[Nr. factură]=rngFactură,ROW(DetaliiFactură[])-ROW(DetaliiFactură[#Headers])), ROW(1:1)), MATCH($C$8, DetaliiFactură[#Headers], 0)),\"\")","v":"Factură 3-456-2 Data 1"},{"$f":"IFERROR(INDEX(DetaliiFactură[],SMALL(IF(DetaliiFactură[Nr. factură]=rngFactură,ROW(DetaliiFactură[])-ROW(DetaliiFactură[#Headers])), ROW(1:1)), MATCH($D$8, DetaliiFactură[#Headers], 0)),\"\")","v":39},{"$f":"IFERROR(INDEX(DetaliiFactură[],SMALL(IF(DetaliiFactură[Nr. factură]=rngFactură,ROW(DetaliiFactură[])-ROW(DetaliiFactură[#Headers])), ROW(1:1)), MATCH($E$8, DetaliiFactură[#Headers], 0)),\"\")","v":{"v":5,"d":"5.00 lei"}},{"$f":"IFERROR(INDEX(DetaliiFactură[],SMALL(IF(DetaliiFactură[Nr. factură]=rngFactură,ROW(DetaliiFactură[])-ROW(DetaliiFactură[#Headers])), ROW(1:1)), MATCH($F$8, DetaliiFactură[#Headers], 0)),\"\")","v":0},{"$f":"IFERROR((D9*E9)-F9,\"\")","v":{"v":195,"d":"195.00 lei"}}]
[null,{"$f":"IFERROR(INDEX(DetaliiFactură[],SMALL(IF(DetaliiFactură[Nr. factură]=rngFactură,ROW(DetaliiFactură[])-ROW(DetaliiFactură[#Headers])), ROW(2:2)), MATCH($B$8, DetaliiFactură[#Headers], 0)),\"\")","v":"Z4568"},{"$f":"IFERROR(INDEX(DetaliiFactură[],SMALL(IF(DetaliiFactură[Nr. factură]=rngFactură,ROW(DetaliiFactură[])-ROW(DetaliiFactură[#Headers])), ROW(2:2)), MATCH($C$8, DetaliiFactură[#Headers], 0)),\"\")","v":"Factură 3-456-2 Data 2"},{"$f":"IFERROR(INDEX(DetaliiFactură[],SMALL(IF(DetaliiFactură[Nr. factură]=rngFactură,ROW(DetaliiFactură[])-ROW(DetaliiFactură[#Headers])), ROW(2:2)), MATCH($D$8, DetaliiFactură[#Headers], 0)),\"\")","v":40},{"$f":"IFERROR(INDEX(DetaliiFactură[],SMALL(IF(DetaliiFactură[Nr. factură]=rngFactură,ROW(DetaliiFactură[])-ROW(DetaliiFactură[#Headers])), ROW(2:2)), MATCH($E$8, DetaliiFactură[#Headers], 0)),\"\")","v":{"v":4,"d":"4.00 lei"}},{"$f":"IFERROR(INDEX(DetaliiFactură[],SMALL(IF(DetaliiFactură[Nr. factură]=rngFactură,ROW(DetaliiFactură[])-ROW(DetaliiFactură[#Headers])), ROW(2:2)), MATCH($F$8, DetaliiFactură[#Headers], 0)),\"\")","v":{"v":5,"d":"5.00 lei"}},{"v":155,"d":"155.00 lei"}]
[null,{"$f":"IFERROR(INDEX(DetaliiFactură[],SMALL(IF(DetaliiFactură[Nr. factură]=rngFactură,ROW(DetaliiFactură[])-ROW(DetaliiFactură[#Headers])), ROW(3:3)), MATCH($B$8, DetaliiFactură[#Headers], 0)),\"\")","v":"Z4569"},{"$f":"IFERROR(INDEX(DetaliiFactură[],SMALL(IF(DetaliiFactură[Nr. factură]=rngFactură,ROW(DetaliiFactură[])-ROW(DetaliiFactură[#Headers])), ROW(3:3)), MATCH($C$8, DetaliiFactură[#Headers], 0)),\"\")","v":"Factură 3-456-2 Data 3"},{"$f":"IFERROR(INDEX(DetaliiFactură[],SMALL(IF(DetaliiFactură[Nr. factură]=rngFactură,ROW(DetaliiFactură[])-ROW(DetaliiFactură[#Headers])), ROW(3:3)), MATCH($D$8, DetaliiFactură[#Headers], 0)),\"\")","v":30},{"$f":"IFERROR(INDEX(DetaliiFactură[],SMALL(IF(DetaliiFactură[Nr. factură]=rngFactură,ROW(DetaliiFactură[])-ROW(DetaliiFactură[#Headers])), ROW(3:3)), MATCH($E$8, DetaliiFactură[#Headers], 0)),\"\")","v":{"v":6,"d":"6.00 lei"}},{"$f":"IFERROR(INDEX(DetaliiFactură[],SMALL(IF(DetaliiFactură[Nr. factură]=rngFactură,ROW(DetaliiFactură[])-ROW(DetaliiFactură[#Headers])), ROW(3:3)), MATCH($F$8, DetaliiFactură[#Headers], 0)),\"\")","v":{"v":7,"d":"7.00 lei"}},{"v":173,"d":"173.00 lei"}]
[null,{"$f":"IFERROR(INDEX(DetaliiFactură[],SMALL(IF(DetaliiFactură[Nr. factură]=rngFactură,ROW(DetaliiFactură[])-ROW(DetaliiFactură[#Headers])), ROW(4:4)), MATCH($B$8, DetaliiFactură[#Headers], 0)),\"\")","v":"Z4570"},{"$f":"IFERROR(INDEX(DetaliiFactură[],SMALL(IF(DetaliiFactură[Nr. factură]=rngFactură,ROW(DetaliiFactură[])-ROW(DetaliiFactură[#Headers])), ROW(4:4)), MATCH($C$8, DetaliiFactură[#Headers], 0)),\"\")","v":"Factură 3-456-2 Data 4"},{"$f":"IFERROR(INDEX(DetaliiFactură[],SMALL(IF(DetaliiFactură[Nr. factură]=rngFactură,ROW(DetaliiFactură[])-ROW(DetaliiFactură[#Headers])), ROW(4:4)), MATCH($D$8, DetaliiFactură[#Headers], 0)),\"\")","v":40},{"$f":"IFERROR(INDEX(DetaliiFactură[],SMALL(IF(DetaliiFactură[Nr. factură]=rngFactură,ROW(DetaliiFactură[])-ROW(DetaliiFactură[#Headers])), ROW(4:4)), MATCH($E$8, DetaliiFactură[#Headers], 0)),\"\")","v":{"v":7,"d":"7.00 lei"}},{"$f":"IFERROR(INDEX(DetaliiFactură[],SMALL(IF(DetaliiFactură[Nr. factură]=rngFactură,ROW(DetaliiFactură[])-ROW(DetaliiFactură[#Headers])), ROW(4:4)), MATCH($F$8, DetaliiFactură[#Headers], 0)),\"\")","v":0},{"v":280,"d":"280.00 lei"}]
[null,{"$f":"IFERROR(INDEX(DetaliiFactură[],SMALL(IF(DetaliiFactură[Nr. factură]=rngFactură,ROW(DetaliiFactură[])-ROW(DetaliiFactură[#Headers])), ROW(5:5)), MATCH($B$8, DetaliiFactură[#Headers], 0)),\"\")","v":"Z4571"},{"$f":"IFERROR(INDEX(DetaliiFactură[],SMALL(IF(DetaliiFactură[Nr. factură]=rngFactură,ROW(DetaliiFactură[])-ROW(DetaliiFactură[#Headers])), ROW(5:5)), MATCH($C$8, DetaliiFactură[#Headers], 0)),\"\")","v":"Factură 3-456-2 Data 5"},{"$f":"IFERROR(INDEX(DetaliiFactură[],SMALL(IF(DetaliiFactură[Nr. factură]=rngFactură,ROW(DetaliiFactură[])-ROW(DetaliiFactură[#Headers])), ROW(5:5)), MATCH($D$8, DetaliiFactură[#Headers], 0)),\"\")","v":10},{"$f":"IFERROR(INDEX(DetaliiFactură[],SMALL(IF(DetaliiFactură[Nr. factură]=rngFactură,ROW(DetaliiFactură[])-ROW(DetaliiFactură[#Headers])), ROW(5:5)), MATCH($E$8, DetaliiFactură[#Headers], 0)),\"\")","v":{"v":4,"d":"4.00 lei"}},{"$f":"IFERROR(INDEX(DetaliiFactură[],SMALL(IF(DetaliiFactură[Nr. factură]=rngFactură,ROW(DetaliiFactură[])-ROW(DetaliiFactură[#Headers])), ROW(5:5)), MATCH($F$8, DetaliiFactură[#Headers], 0)),\"\")","v":0},{"v":40,"d":"40.00 lei"}]
[null,{"$f":"IFERROR(INDEX(DetaliiFactură[],SMALL(IF(DetaliiFactură[Nr. factură]=rngFactură,ROW(DetaliiFactură[])-ROW(DetaliiFactură[#Headers])), ROW(6:6)), MATCH($B$8, DetaliiFactură[#Headers], 0)),\"\")","v":"Z4572"},{"$f":"IFERROR(INDEX(DetaliiFactură[],SMALL(IF(DetaliiFactură[Nr. factură]=rngFactură,ROW(DetaliiFactură[])-ROW(DetaliiFactură[#Headers])), ROW(6:6)), MATCH($C$8, DetaliiFactură[#Headers], 0)),\"\")","v":"Factură 3-456-2 Data 6"},{"$f":"IFERROR(INDEX(DetaliiFactură[],SMALL(IF(DetaliiFactură[Nr. factură]=rngFactură,ROW(DetaliiFactură[])-ROW(DetaliiFactură[#Headers])), ROW(6:6)), MATCH($D$8, DetaliiFactură[#Headers], 0)),\"\")","v":5},{"$f":"IFERROR(INDEX(DetaliiFactură[],SMALL(IF(DetaliiFactură[Nr. factură]=rngFactură,ROW(DetaliiFactură[])-ROW(DetaliiFactură[#Headers])), ROW(6:6)), MATCH($E$8, DetaliiFactură[#Headers], 0)),\"\")","v":{"v":8,"d":"8.00 lei"}},{"$f":"IFERROR(INDEX(DetaliiFactură[],SMALL(IF(DetaliiFactură[Nr. factură]=rngFactură,ROW(DetaliiFactură[])-ROW(DetaliiFactură[#Headers])), ROW(6:6)), MATCH($F$8, DetaliiFactură[#Headers], 0)),\"\")","v":0},{"v":40,"d":"40.00 lei"}]
[null,{"$f":"IFERROR(INDEX(DetaliiFactură[],SMALL(IF(DetaliiFactură[Nr. factură]=rngFactură,ROW(DetaliiFactură[])-ROW(DetaliiFactură[#Headers])), ROW(7:7)), MATCH($B$8, DetaliiFactură[#Headers], 0)),\"\")","v":"Z4573"},{"$f":"IFERROR(INDEX(DetaliiFactură[],SMALL(IF(DetaliiFactură[Nr. factură]=rngFactură,ROW(DetaliiFactură[])-ROW(DetaliiFactură[#Headers])), ROW(7:7)), MATCH($C$8, DetaliiFactură[#Headers], 0)),\"\")","v":"Factură 3-456-2 Data 7"},{"$f":"IFERROR(INDEX(DetaliiFactură[],SMALL(IF(DetaliiFactură[Nr. factură]=rngFactură,ROW(DetaliiFactură[])-ROW(DetaliiFactură[#Headers])), ROW(7:7)), MATCH($D$8, DetaliiFactură[#Headers], 0)),\"\")","v":70},{"$f":"IFERROR(INDEX(DetaliiFactură[],SMALL(IF(DetaliiFactură[Nr. factură]=rngFactură,ROW(DetaliiFactură[])-ROW(DetaliiFactură[#Headers])), ROW(7:7)), MATCH($E$8, DetaliiFactură[#Headers], 0)),\"\")","v":{"v":6,"d":"6.00 lei"}},{"$f":"IFERROR(INDEX(DetaliiFactură[],SMALL(IF(DetaliiFactură[Nr. factură]=rngFactură,ROW(DetaliiFactură[])-ROW(DetaliiFactură[#Headers])), ROW(7:7)), MATCH($F$8, DetaliiFactură[#Headers], 0)),\"\")","v":0},{"v":420,"d":"420.00 lei"}]
[null,{"$f":"IFERROR(INDEX(DetaliiFactură[],SMALL(IF(DetaliiFactură[Nr. factură]=rngFactură,ROW(DetaliiFactură[])-ROW(DetaliiFactură[#Headers])), ROW(8:8)), MATCH($B$8, DetaliiFactură[#Headers], 0)),\"\")","v":"Z4574"},{"$f":"IFERROR(INDEX(DetaliiFactură[],SMALL(IF(DetaliiFactură[Nr. factură]=rngFactură,ROW(DetaliiFactură[])-ROW(DetaliiFactură[#Headers])), ROW(8:8)), MATCH($C$8, DetaliiFactură[#Headers], 0)),\"\")","v":"Factură 3-456-2 Data 8"},{"$f":"IFERROR(INDEX(DetaliiFactură[],SMALL(IF(DetaliiFactură[Nr. factură]=rngFactură,ROW(DetaliiFactură[])-ROW(DetaliiFactură[#Headers])), ROW(8:8)), MATCH($D$8, DetaliiFactură[#Headers], 0)),\"\")","v":25},{"$f":"IFERROR(INDEX(DetaliiFactură[],SMALL(IF(DetaliiFactură[Nr. factură]=rngFactură,ROW(DetaliiFactură[])-ROW(DetaliiFactură[#Headers])), ROW(8:8)), MATCH($E$8, DetaliiFactură[#Headers], 0)),\"\")","v":{"v":4,"d":"4.00 lei"}},{"$f":"IFERROR(INDEX(DetaliiFactură[],SMALL(IF(DetaliiFactură[Nr. factură]=rngFactură,ROW(DetaliiFactură[])-ROW(DetaliiFactură[#Headers])), ROW(8:8)), MATCH($F$8, DetaliiFactură[#Headers], 0)),\"\")","v":0},{"v":100,"d":"100.00 lei"}]
[null,{"$f":"IFERROR(INDEX(DetaliiFactură[],SMALL(IF(DetaliiFactură[Nr. factură]=rngFactură,ROW(DetaliiFactură[])-ROW(DetaliiFactură[#Headers])), ROW(9:9)), MATCH($B$8, DetaliiFactură[#Headers], 0)),\"\")","v":"Z4575"},{"$f":"IFERROR(INDEX(DetaliiFactură[],SMALL(IF(DetaliiFactură[Nr. factură]=rngFactură,ROW(DetaliiFactură[])-ROW(DetaliiFactură[#Headers])), ROW(9:9)), MATCH($C$8, DetaliiFactură[#Headers], 0)),\"\")","v":"Factură 3-456-2 Data 9"},{"$f":"IFERROR(INDEX(DetaliiFactură[],SMALL(IF(DetaliiFactură[Nr. factură]=rngFactură,ROW(DetaliiFactură[])-ROW(DetaliiFactură[#Headers])), ROW(9:9)), MATCH($D$8, DetaliiFactură[#Headers], 0)),\"\")","v":5},{"$f":"IFERROR(INDEX(DetaliiFactură[],SMALL(IF(DetaliiFactură[Nr. factură]=rngFactură,ROW(DetaliiFactură[])-ROW(DetaliiFactură[#Headers])), ROW(9:9)), MATCH($E$8, DetaliiFactură[#Headers], 0)),\"\")","v":{"v":7,"d":"7.00 lei"}},{"$f":"IFERROR(INDEX(DetaliiFactură[],SMALL(IF(DetaliiFactură[Nr. factură]=rngFactură,ROW(DetaliiFactură[])-ROW(DetaliiFactură[#Headers])), ROW(9:9)), MATCH($F$8, DetaliiFactură[#Headers], 0)),\"\")","v":{"v":3,"d":"3.00 lei"}},{"v":32,"d":"32.00 lei"}]
[null,{"$f":"IFERROR(INDEX(DetaliiFactură[],SMALL(IF(DetaliiFactură[Nr. factură]=rngFactură,ROW(DetaliiFactură[])-ROW(DetaliiFactură[#Headers])), ROW(10:10)), MATCH($B$8, DetaliiFactură[#Headers], 0)),\"\")","v":"Z4576"},{"$f":"IFERROR(INDEX(DetaliiFactură[],SMALL(IF(DetaliiFactură[Nr. factură]=rngFactură,ROW(DetaliiFactură[])-ROW(DetaliiFactură[#Headers])), ROW(10:10)), MATCH($C$8, DetaliiFactură[#Headers], 0)),\"\")","v":"Factură 3-456-2 Data 10"},{"$f":"IFERROR(INDEX(DetaliiFactură[],SMALL(IF(DetaliiFactură[Nr. factură]=rngFactură,ROW(DetaliiFactură[])-ROW(DetaliiFactură[#Headers])), ROW(10:10)), MATCH($D$8, DetaliiFactură[#Headers], 0)),\"\")","v":80},{"$f":"IFERROR(INDEX(DetaliiFactură[],SMALL(IF(DetaliiFactură[Nr. factură]=rngFactură,ROW(DetaliiFactură[])-ROW(DetaliiFactură[#Headers])), ROW(10:10)), MATCH($E$8, DetaliiFactură[#Headers], 0)),\"\")","v":{"v":1,"d":"1.00 lei"}},{"$f":"IFERROR(INDEX(DetaliiFactură[],SMALL(IF(DetaliiFactură[Nr. factură]=rngFactură,ROW(DetaliiFactură[])-ROW(DetaliiFactură[#Headers])), ROW(10:10)), MATCH($F$8, DetaliiFactură[#Headers], 0)),\"\")","v":0},{"v":80,"d":"80.00 lei"}]
[null,{"$f":"IFERROR(INDEX(DetaliiFactură[],SMALL(IF(DetaliiFactură[Nr. factură]=rngFactură,ROW(DetaliiFactură[])-ROW(DetaliiFactură[#Headers])), ROW(11:11)), MATCH($B$8, DetaliiFactură[#Headers], 0)),\"\")","v":"Z4577"},{"$f":"IFERROR(INDEX(DetaliiFactură[],SMALL(IF(DetaliiFactură[Nr. factură]=rngFactură,ROW(DetaliiFactură[])-ROW(DetaliiFactură[#Headers])), ROW(11:11)), MATCH($C$8, DetaliiFactură[#Headers], 0)),\"\")","v":"Factură 3-456-2 Data 11"},{"$f":"IFERROR(INDEX(DetaliiFactură[],SMALL(IF(DetaliiFactură[Nr. factură]=rngFactură,ROW(DetaliiFactură[])-ROW(DetaliiFactură[#Headers])), ROW(11:11)), MATCH($D$8, DetaliiFactură[#Headers], 0)),\"\")","v":65},{"$f":"IFERROR(INDEX(DetaliiFactură[],SMALL(IF(DetaliiFactură[Nr. factură]=rngFactură,ROW(DetaliiFactură[])-ROW(DetaliiFactură[#Headers])), ROW(11:11)), MATCH($E$8, DetaliiFactură[#Headers], 0)),\"\")","v":{"v":7,"d":"7.00 lei"}},{"$f":"IFERROR(INDEX(DetaliiFactură[],SMALL(IF(DetaliiFactură[Nr. factură]=rngFactură,ROW(DetaliiFactură[])-ROW(DetaliiFactură[#Headers])), ROW(11:11)), MATCH($F$8, DetaliiFactură[#Headers], 0)),\"\")","v":0},{"v":455,"d":"455.00 lei"}]
[null,{"$f":"IFERROR(INDEX(DetaliiFactură[],SMALL(IF(DetaliiFactură[Nr. factură]=rngFactură,ROW(DetaliiFactură[])-ROW(DetaliiFactură[#Headers])), ROW(12:12)), MATCH($B$8, DetaliiFactură[#Headers], 0)),\"\")","v":"Z4578"},{"$f":"IFERROR(INDEX(DetaliiFactură[],SMALL(IF(DetaliiFactură[Nr. factură]=rngFactură,ROW(DetaliiFactură[])-ROW(DetaliiFactură[#Headers])), ROW(12:12)), MATCH($C$8, DetaliiFactură[#Headers], 0)),\"\")","v":"Factură 3-456-2 Data 12"},{"$f":"IFERROR(INDEX(DetaliiFactură[],SMALL(IF(DetaliiFactură[Nr. factură]=rngFactură,ROW(DetaliiFactură[])-ROW(DetaliiFactură[#Headers])), ROW(12:12)), MATCH($D$8, DetaliiFactură[#Headers], 0)),\"\")","v":44},{"$f":"IFERROR(INDEX(DetaliiFactură[],SMALL(IF(DetaliiFactură[Nr. factură]=rngFactură,ROW(DetaliiFactură[])-ROW(DetaliiFactură[#Headers])), ROW(12:12)), MATCH($E$8, DetaliiFactură[#Headers], 0)),\"\")","v":{"v":1,"d":"1.00 lei"}},{"$f":"IFERROR(INDEX(DetaliiFactură[],SMALL(IF(DetaliiFactură[Nr. factură]=rngFactură,ROW(DetaliiFactură[])-ROW(DetaliiFactură[#Headers])), ROW(12:12)), MATCH($F$8, DetaliiFactură[#Headers], 0)),\"\")","v":0},{"v":44,"d":"44.00 lei"}]
[null,{"$f":"IFERROR(INDEX(DetaliiFactură[],SMALL(IF(DetaliiFactură[Nr. factură]=rngFactură,ROW(DetaliiFactură[])-ROW(DetaliiFactură[#Headers])), ROW(13:13)), MATCH($B$8, DetaliiFactură[#Headers], 0)),\"\")","v":""},{"$f":"IFERROR(INDEX(DetaliiFactură[],SMALL(IF(DetaliiFactură[Nr. factură]=rngFactură,ROW(DetaliiFactură[])-ROW(DetaliiFactură[#Headers])), ROW(13:13)), MATCH($C$8, DetaliiFactură[#Headers], 0)),\"\")","v":""},{"$f":"IFERROR(INDEX(DetaliiFactură[],SMALL(IF(DetaliiFactură[Nr. factură]=rngFactură,ROW(DetaliiFactură[])-ROW(DetaliiFactură[#Headers])), ROW(13:13)), MATCH($D$8, DetaliiFactură[#Headers], 0)),\"\")","v":""},{"$f":"IFERROR(INDEX(DetaliiFactură[],SMALL(IF(DetaliiFactură[Nr. factură]=rngFactură,ROW(DetaliiFactură[])-ROW(DetaliiFactură[#Headers])), ROW(13:13)), MATCH($E$8, DetaliiFactură[#Headers], 0)),\"\")","v":""},{"$f":"IFERROR(INDEX(DetaliiFactură[],SMALL(IF(DetaliiFactură[Nr. factură]=rngFactură,ROW(DetaliiFactură[])-ROW(DetaliiFactură[#Headers])), ROW(13:13)), MATCH($F$8, DetaliiFactură[#Headers], 0)),\"\")","v":""},""]
[null,{"$f":"IFERROR(INDEX(DetaliiFactură[],SMALL(IF(DetaliiFactură[Nr. factură]=rngFactură,ROW(DetaliiFactură[])-ROW(DetaliiFactură[#Headers])), ROW(14:14)), MATCH($B$8, DetaliiFactură[#Headers], 0)),\"\")","v":""},{"$f":"IFERROR(INDEX(DetaliiFactură[],SMALL(IF(DetaliiFactură[Nr. factură]=rngFactură,ROW(DetaliiFactură[])-ROW(DetaliiFactură[#Headers])), ROW(14:14)), MATCH($C$8, DetaliiFactură[#Headers], 0)),\"\")","v":""},{"$f":"IFERROR(INDEX(DetaliiFactură[],SMALL(IF(DetaliiFactură[Nr. factură]=rngFactură,ROW(DetaliiFactură[])-ROW(DetaliiFactură[#Headers])), ROW(14:14)), MATCH($D$8, DetaliiFactură[#Headers], 0)),\"\")","v":""},{"$f":"IFERROR(INDEX(DetaliiFactură[],SMALL(IF(DetaliiFactură[Nr. factură]=rngFactură,ROW(DetaliiFactură[])-ROW(DetaliiFactură[#Headers])), ROW(14:14)), MATCH($E$8, DetaliiFactură[#Headers], 0)),\"\")","v":""},{"$f":"IFERROR(INDEX(DetaliiFactură[],SMALL(IF(DetaliiFactură[Nr. factură]=rngFactură,ROW(DetaliiFactură[])-ROW(DetaliiFactură[#Headers])), ROW(14:14)), MATCH($F$8, DetaliiFactură[#Headers], 0)),\"\")","v":""},""]
[null,{"$f":"IFERROR(INDEX(DetaliiFactură[],SMALL(IF(DetaliiFactură[Nr. factură]=rngFactură,ROW(DetaliiFactură[])-ROW(DetaliiFactură[#Headers])), ROW(15:15)), MATCH($B$8, DetaliiFactură[#Headers], 0)),\"\")","v":""},{"$f":"IFERROR(INDEX(DetaliiFactură[],SMALL(IF(DetaliiFactură[Nr. factură]=rngFactură,ROW(DetaliiFactură[])-ROW(DetaliiFactură[#Headers])), ROW(15:15)), MATCH($C$8, DetaliiFactură[#Headers], 0)),\"\")","v":""},{"$f":"IFERROR(INDEX(DetaliiFactură[],SMALL(IF(DetaliiFactură[Nr. factură]=rngFactură,ROW(DetaliiFactură[])-ROW(DetaliiFactură[#Headers])), ROW(15:15)), MATCH($D$8, DetaliiFactură[#Headers], 0)),\"\")","v":""},{"$f":"IFERROR(INDEX(DetaliiFactură[],SMALL(IF(DetaliiFactură[Nr. factură]=rngFactură,ROW(DetaliiFactură[])-ROW(DetaliiFactură[#Headers])), ROW(15:15)), MATCH($E$8, DetaliiFactură[#Headers], 0)),\"\")","v":""},{"$f":"IFERROR(INDEX(DetaliiFactură[],SMALL(IF(DetaliiFactură[Nr. factură]=rngFactură,ROW(DetaliiFactură[])-ROW(DetaliiFactură[#Headers])), ROW(15:15)), MATCH($F$8, DetaliiFactură[#Headers], 0)),\"\")","v":""},""]
[null,{"$f":"IFERROR(INDEX(DetaliiFactură[],SMALL(IF(DetaliiFactură[Nr. factură]=rngFactură,ROW(DetaliiFactură[])-ROW(DetaliiFactură[#Headers])), ROW(16:16)), MATCH($B$8, DetaliiFactură[#Headers], 0)),\"\")","v":""},{"$f":"IFERROR(INDEX(DetaliiFactură[],SMALL(IF(DetaliiFactură[Nr. factură]=rngFactură,ROW(DetaliiFactură[])-ROW(DetaliiFactură[#Headers])), ROW(16:16)), MATCH($C$8, DetaliiFactură[#Headers], 0)),\"\")","v":""},{"$f":"IFERROR(INDEX(DetaliiFactură[],SMALL(IF(DetaliiFactură[Nr. factură]=rngFactură,ROW(DetaliiFactură[])-ROW(DetaliiFactură[#Headers])), ROW(16:16)), MATCH($D$8, DetaliiFactură[#Headers], 0)),\"\")","v":""},{"$f":"IFERROR(INDEX(DetaliiFactură[],SMALL(IF(DetaliiFactură[Nr. factură]=rngFactură,ROW(DetaliiFactură[])-ROW(DetaliiFactură[#Headers])), ROW(16:16)), MATCH($E$8, DetaliiFactură[#Headers], 0)),\"\")","v":""},{"$f":"IFERROR(INDEX(DetaliiFactură[],SMALL(IF(DetaliiFactură[Nr. factură]=rngFactură,ROW(DetaliiFactură[])-ROW(DetaliiFactură[#Headers])), ROW(16:16)), MATCH($F$8, DetaliiFactură[#Headers], 0)),\"\")","v":""},""]
[null,{"$f":"IFERROR(INDEX(DetaliiFactură[],SMALL(IF(DetaliiFactură[Nr. factură]=rngFactură,ROW(DetaliiFactură[])-ROW(DetaliiFactură[#Headers])), ROW(17:17)), MATCH($B$8, DetaliiFactură[#Headers], 0)),\"\")","v":""},{"$f":"IFERROR(INDEX(DetaliiFactură[],SMALL(IF(DetaliiFactură[Nr. factură]=rngFactură,ROW(DetaliiFactură[])-ROW(DetaliiFactură[#Headers])), ROW(17:17)), MATCH($C$8, DetaliiFactură[#Headers], 0)),\"\")","v":""},{"$f":"IFERROR(INDEX(DetaliiFactură[],SMALL(IF(DetaliiFactură[Nr. factură]=rngFactură,ROW(DetaliiFactură[])-ROW(DetaliiFactură[#Headers])), ROW(17:17)), MATCH($D$8, DetaliiFactură[#Headers], 0)),\"\")","v":""},{"$f":"IFERROR(INDEX(DetaliiFactură[],SMALL(IF(DetaliiFactură[Nr. factură]=rngFactură,ROW(DetaliiFactură[])-ROW(DetaliiFactură[#Headers])), ROW(17:17)), MATCH($E$8, DetaliiFactură[#Headers], 0)),\"\")","v":""},{"$f":"IFERROR(INDEX(DetaliiFactură[],SMALL(IF(DetaliiFactură[Nr. factură]=rngFactură,ROW(DetaliiFactură[])-ROW(DetaliiFactură[#Headers])), ROW(17:17)), MATCH($F$8, DetaliiFactură[#Headers], 0)),\"\")","v":""},""]
[null,{"$f":"IFERROR(INDEX(DetaliiFactură[],SMALL(IF(DetaliiFactură[Nr. factură]=rngFactură,ROW(DetaliiFactură[])-ROW(DetaliiFactură[#Headers])), ROW(18:18)), MATCH($B$8, DetaliiFactură[#Headers], 0)),\"\")","v":""},{"$f":"IFERROR(INDEX(DetaliiFactură[],SMALL(IF(DetaliiFactură[Nr. factură]=rngFactură,ROW(DetaliiFactură[])-ROW(DetaliiFactură[#Headers])), ROW(18:18)), MATCH($C$8, DetaliiFactură[#Headers], 0)),\"\")","v":""},{"$f":"IFERROR(INDEX(DetaliiFactură[],SMALL(IF(DetaliiFactură[Nr. factură]=rngFactură,ROW(DetaliiFactură[])-ROW(DetaliiFactură[#Headers])), ROW(18:18)), MATCH($D$8, DetaliiFactură[#Headers], 0)),\"\")","v":""},{"$f":"IFERROR(INDEX(DetaliiFactură[],SMALL(IF(DetaliiFactură[Nr. factură]=rngFactură,ROW(DetaliiFactură[])-ROW(DetaliiFactură[#Headers])), ROW(18:18)), MATCH($E$8, DetaliiFactură[#Headers], 0)),\"\")","v":""},{"$f":"IFERROR(INDEX(DetaliiFactură[],SMALL(IF(DetaliiFactură[Nr. factură]=rngFactură,ROW(DetaliiFactură[])-ROW(DetaliiFactură[#Headers])), ROW(18:18)), MATCH($F$8, DetaliiFactură[#Headers], 0)),\"\")","v":""},""]
[null,{"$f":"IFERROR(INDEX(DetaliiFactură[],SMALL(IF(DetaliiFactură[Nr. factură]=rngFactură,ROW(DetaliiFactură[])-ROW(DetaliiFactură[#Headers])), ROW(19:19)), MATCH($B$8, DetaliiFactură[#Headers], 0)),\"\")","v":""},{"$f":"IFERROR(INDEX(DetaliiFactură[],SMALL(IF(DetaliiFactură[Nr. factură]=rngFactură,ROW(DetaliiFactură[])-ROW(DetaliiFactură[#Headers])), ROW(19:19)), MATCH($C$8, DetaliiFactură[#Headers], 0)),\"\")","v":""},{"$f":"IFERROR(INDEX(DetaliiFactură[],SMALL(IF(DetaliiFactură[Nr. factură]=rngFactură,ROW(DetaliiFactură[])-ROW(DetaliiFactură[#Headers])), ROW(19:19)), MATCH($D$8, DetaliiFactură[#Headers], 0)),\"\")","v":""},{"$f":"IFERROR(INDEX(DetaliiFactură[],SMALL(IF(DetaliiFactură[Nr. factură]=rngFactură,ROW(DetaliiFactură[])-ROW(DetaliiFactură[#Headers])), ROW(19:19)), MATCH($E$8, DetaliiFactură[#Headers], 0)),\"\")","v":""},{"$f":"IFERROR(INDEX(DetaliiFactură[],SMALL(IF(DetaliiFactură[Nr. factură]=rngFactură,ROW(DetaliiFactură[])-ROW(DetaliiFactură[#Headers])), ROW(19:19)), MATCH($F$8, DetaliiFactură[#Headers], 0)),\"\")","v":""},""]
[null,{"$f":"IFERROR(INDEX(DetaliiFactură[],SMALL(IF(DetaliiFactură[Nr. factură]=rngFactură,ROW(DetaliiFactură[])-ROW(DetaliiFactură[#Headers])), ROW(20:20)), MATCH($B$8, DetaliiFactură[#Headers], 0)),\"\")","v":""},{"$f":"IFERROR(INDEX(DetaliiFactură[],SMALL(IF(DetaliiFactură[Nr. factură]=rngFactură,ROW(DetaliiFactură[])-ROW(DetaliiFactură[#Headers])), ROW(20:20)), MATCH($C$8, DetaliiFactură[#Headers], 0)),\"\")","v":""},{"$f":"IFERROR(INDEX(DetaliiFactură[],SMALL(IF(DetaliiFactură[Nr. factură]=rngFactură,ROW(DetaliiFactură[])-ROW(DetaliiFactură[#Headers])), ROW(20:20)), MATCH($D$8, DetaliiFactură[#Headers], 0)),\"\")","v":""},{"$f":"IFERROR(INDEX(DetaliiFactură[],SMALL(IF(DetaliiFactură[Nr. factură]=rngFactură,ROW(DetaliiFactură[])-ROW(DetaliiFactură[#Headers])), ROW(20:20)), MATCH($E$8, DetaliiFactură[#Headers], 0)),\"\")","v":""},{"$f":"IFERROR(INDEX(DetaliiFactură[],SMALL(IF(DetaliiFactură[Nr. factură]=rngFactură,ROW(DetaliiFactură[])-ROW(DetaliiFactură[#Headers])), ROW(20:20)), MATCH($F$8, DetaliiFactură[#Headers], 0)),\"\")","v":""},""]
[null,{"$f":"IFERROR(INDEX(DetaliiFactură[],SMALL(IF(DetaliiFactură[Nr. factură]=rngFactură,ROW(DetaliiFactură[])-ROW(DetaliiFactură[#Headers])), ROW(21:21)), MATCH($B$8, DetaliiFactură[#Headers], 0)),\"\")","v":""},{"$f":"IFERROR(INDEX(DetaliiFactură[],SMALL(IF(DetaliiFactură[Nr. factură]=rngFactură,ROW(DetaliiFactură[])-ROW(DetaliiFactură[#Headers])), ROW(21:21)), MATCH($C$8, DetaliiFactură[#Headers], 0)),\"\")","v":""},{"$f":"IFERROR(INDEX(DetaliiFactură[],SMALL(IF(DetaliiFactură[Nr. factură]=rngFactură,ROW(DetaliiFactură[])-ROW(DetaliiFactură[#Headers])), ROW(21:21)), MATCH($D$8, DetaliiFactură[#Headers], 0)),\"\")","v":""},{"$f":"IFERROR(INDEX(DetaliiFactură[],SMALL(IF(DetaliiFactură[Nr. factură]=rngFactură,ROW(DetaliiFactură[])-ROW(DetaliiFactură[#Headers])), ROW(21:21)), MATCH($E$8, DetaliiFactură[#Headers], 0)),\"\")","v":""},{"$f":"IFERROR(INDEX(DetaliiFactură[],SMALL(IF(DetaliiFactură[Nr. factură]=rngFactură,ROW(DetaliiFactură[])-ROW(DetaliiFactură[#Headers])), ROW(21:21)), MATCH($F$8, DetaliiFactură[#Headers], 0)),\"\")","v":""},""]
[null,{"$f":"IFERROR(INDEX(DetaliiFactură[],SMALL(IF(DetaliiFactură[Nr. factură]=rngFactură,ROW(DetaliiFactură[])-ROW(DetaliiFactură[#Headers])), ROW(22:22)), MATCH($B$8, DetaliiFactură[#Headers], 0)),\"\")","v":""},{"$f":"IFERROR(INDEX(DetaliiFactură[],SMALL(IF(DetaliiFactură[Nr. factură]=rngFactură,ROW(DetaliiFactură[])-ROW(DetaliiFactură[#Headers])), ROW(22:22)), MATCH($C$8, DetaliiFactură[#Headers], 0)),\"\")","v":""},{"$f":"IFERROR(INDEX(DetaliiFactură[],SMALL(IF(DetaliiFactură[Nr. factură]=rngFactură,ROW(DetaliiFactură[])-ROW(DetaliiFactură[#Headers])), ROW(22:22)), MATCH($D$8, DetaliiFactură[#Headers], 0)),\"\")","v":""},{"$f":"IFERROR(INDEX(DetaliiFactură[],SMALL(IF(DetaliiFactură[Nr. factură]=rngFactură,ROW(DetaliiFactură[])-ROW(DetaliiFactură[#Headers])), ROW(22:22)), MATCH($E$8, DetaliiFactură[#Headers], 0)),\"\")","v":""},{"$f":"IFERROR(INDEX(DetaliiFactură[],SMALL(IF(DetaliiFactură[Nr. factură]=rngFactură,ROW(DetaliiFactură[])-ROW(DetaliiFactură[#Headers])), ROW(22:22)), MATCH($F$8, DetaliiFactură[#Headers], 0)),\"\")","v":""},""]
[null,{"$f":"IFERROR(INDEX(DetaliiFactură[],SMALL(IF(DetaliiFactură[Nr. factură]=rngFactură,ROW(DetaliiFactură[])-ROW(DetaliiFactură[#Headers])), ROW(23:23)), MATCH($B$8, DetaliiFactură[#Headers], 0)),\"\")","v":""},{"$f":"IFERROR(INDEX(DetaliiFactură[],SMALL(IF(DetaliiFactură[Nr. factură]=rngFactură,ROW(DetaliiFactură[])-ROW(DetaliiFactură[#Headers])), ROW(23:23)), MATCH($C$8, DetaliiFactură[#Headers], 0)),\"\")","v":""},{"$f":"IFERROR(INDEX(DetaliiFactură[],SMALL(IF(DetaliiFactură[Nr. factură]=rngFactură,ROW(DetaliiFactură[])-ROW(DetaliiFactură[#Headers])), ROW(23:23)), MATCH($D$8, DetaliiFactură[#Headers], 0)),\"\")","v":""},{"$f":"IFERROR(INDEX(DetaliiFactură[],SMALL(IF(DetaliiFactură[Nr. factură]=rngFactură,ROW(DetaliiFactură[])-ROW(DetaliiFactură[#Headers])), ROW(23:23)), MATCH($E$8, DetaliiFactură[#Headers], 0)),\"\")","v":""},{"$f":"IFERROR(INDEX(DetaliiFactură[],SMALL(IF(DetaliiFactură[Nr. factură]=rngFactură,ROW(DetaliiFactură[])-ROW(DetaliiFactură[#Headers])), ROW(23:23)), MATCH($F$8, DetaliiFactură[#Headers], 0)),\"\")","v":""},""]
[null,{"$f":"IFERROR(INDEX(DetaliiFactură[],SMALL(IF(DetaliiFactură[Nr. factură]=rngFactură,ROW(DetaliiFactură[])-ROW(DetaliiFactură[#Headers])), ROW(24:24)), MATCH($B$8, DetaliiFactură[#Headers], 0)),\"\")","v":""},{"$f":"IFERROR(INDEX(DetaliiFactură[],SMALL(IF(DetaliiFactură[Nr. factură]=rngFactură,ROW(DetaliiFactură[])-ROW(DetaliiFactură[#Headers])), ROW(24:24)), MATCH($C$8, DetaliiFactură[#Headers], 0)),\"\")","v":""},{"$f":"IFERROR(INDEX(DetaliiFactură[],SMALL(IF(DetaliiFactură[Nr. factură]=rngFactură,ROW(DetaliiFactură[])-ROW(DetaliiFactură[#Headers])), ROW(24:24)), MATCH($D$8, DetaliiFactură[#Headers], 0)),\"\")","v":""},{"$f":"IFERROR(INDEX(DetaliiFactură[],SMALL(IF(DetaliiFactură[Nr. factură]=rngFactură,ROW(DetaliiFactură[])-ROW(DetaliiFactură[#Headers])), ROW(24:24)), MATCH($E$8, DetaliiFactură[#Headers], 0)),\"\")","v":""},{"$f":"IFERROR(INDEX(DetaliiFactură[],SMALL(IF(DetaliiFactură[Nr. factură]=rngFactură,ROW(DetaliiFactură[])-ROW(DetaliiFactură[#Headers])), ROW(24:24)), MATCH($F$8, DetaliiFactură[#Headers], 0)),\"\")","v":""},""]
[null,{"$f":"IFERROR(INDEX(DetaliiFactură[],SMALL(IF(DetaliiFactură[Nr. factură]=rngFactură,ROW(DetaliiFactură[])-ROW(DetaliiFactură[#Headers])), ROW(25:25)), MATCH($B$8, DetaliiFactură[#Headers], 0)),\"\")","v":""},{"$f":"IFERROR(INDEX(DetaliiFactură[],SMALL(IF(DetaliiFactură[Nr. factură]=rngFactură,ROW(DetaliiFactură[])-ROW(DetaliiFactură[#Headers])), ROW(25:25)), MATCH($C$8, DetaliiFactură[#Headers], 0)),\"\")","v":""},{"$f":"IFERROR(INDEX(DetaliiFactură[],SMALL(IF(DetaliiFactură[Nr. factură]=rngFactură,ROW(DetaliiFactură[])-ROW(DetaliiFactură[#Headers])), ROW(25:25)), MATCH($D$8, DetaliiFactură[#Headers], 0)),\"\")","v":""},{"$f":"IFERROR(INDEX(DetaliiFactură[],SMALL(IF(DetaliiFactură[Nr. factură]=rngFactură,ROW(DetaliiFactură[])-ROW(DetaliiFactură[#Headers])), ROW(25:25)), MATCH($E$8, DetaliiFactură[#Headers], 0)),\"\")","v":""},{"$f":"IFERROR(INDEX(DetaliiFactură[],SMALL(IF(DetaliiFactură[Nr. factură]=rngFactură,ROW(DetaliiFactură[])-ROW(DetaliiFactură[#Headers])), ROW(25:25)), MATCH($F$8, DetaliiFactură[#Headers], 0)),\"\")","v":""},""]
[{"$nulls":5},"Subtotal factură",{"$f":"SUM(ProiectFactură[Preț])","v":{"v":2014,"d":"2,014.00 lei"}}]
[{"$nulls":5},"Rata de impozitare",{"$f":"VLOOKUP(rngFactură,FacturiPrincipale[],5)","v":{"v":0.0875,"d":"8.75%"}}]
[{"$nulls":5},"Impozit pe vânzări",{"$f":"G34*G35","v":{"v":176.225,"d":"176.23 lei"}}]
[{"$nulls":5},"Altele",{"$f":"VLOOKUP(rngFactură,FacturiPrincipale[],6)","v":0}]
[null,{"$f":"\"Totalul din noiembrie \"&NumeFirmă&\".\"","v":"Totalul din noiembrie Numele firmei."},{"$nulls":3},"Avans primit",{"$f":"VLOOKUP(rngFactură,FacturiPrincipale[],7)","v":0}]
[null,"Total datorat în <nr.> zile. Conturile cu scadență depășită pot fi taxate cu <nr.>% pe lună.",{"$nulls":3},"TOTAL",{"$f":"(G34+G36+G37)-G38","v":{"v":2190.225,"d":"2,190.23 lei"}}]

{"sheet":"Clienți","index":1,"n_rows":6,"n_cols":12,"rows_kept":6}
[]
[null,null,"Clienți"]
[null,"Căutare","Nr. firmă","Numele firmei","Nume persoană de contact","Adresă","Localitate","Județ","Cod poștal","Telefon","E-mail","Fax"]
[null,{"$f":"C4& \" - \"&D4","v":"1 - Tailspin Toys "},1,"Tailspin Toys ","Alin Olteanu","Strada Cireșilor 345","Arad","AR","123456","432 555 0178","cineva@example.com","432 555 0187"]
[null,"2 - Contoso, Ltd",2,"Contoso, Ltd","Emil Moldovan","Aleea Castanilor 567","Moreni","DB","098765","432 555 0189","cineva@example.com","432 555 0123"]
[null,"Totaluri",{"$f":"\"Total Clienți: \"&SUBTOTAL(103,ListăClienți[Nr. firmă])","v":"Total Clienți: 2"}]

{"sheet":"Facturi - principale","index":2,"n_rows":6,"n_cols":11,"rows_kept":6}
[]
[null,"Facturi"]
[null,"Nr. factură","Firmă","Data facturii","Descrierea proiectului","Rata de impozitare","Altele","Depozit","Total detalii","Total factură","Note"]
[null,"3-456-1","1 - Tailspin Toys ",{"$f":"TODAY()","v":{"v":43675,"d":"4367500.00%"}},"Proiectul 1",{"v":0.0875,"d":"8.75%"},{"v":100,"d":"100.00 lei"},{"v":100,"d":"100.00 lei"},{"$f":"SUMIF(DetaliiFactură[Nr. factură],\"=\"&FacturiPrincipale[[#This Row],[Nr. factură]],DetaliiFactură[Total])","v":{"v":5200,"d":"5,200.00 lei"}},{"$f":"(FacturiPrincipale[[#This Row],[Total detalii]]*(1+FacturiPrincipale[[#This Row],[Rata de impozitare]]))+FacturiPrincipale[[#This Row],[Altele]]-FacturiPrincipale[[#This Row],[Depozit]]","v":{"v":5654.999999999999,"d":"5,655.00 lei"}}]
[null,"3-456-2","2 - Contoso, Ltd",{"$f":"TODAY()+10","v":{"v":43685,"d":"4368500.00%"}},"Proiectul 2",{"v":0.0875,"d":"8.75%"},null,null,{"$f":"SUMIF(DetaliiFactură[Nr. factură],\"=\"&FacturiPrincipale[[#This Row],[Nr. factură]],DetaliiFactură[Total])","v":{"v":2014,"d":"2,014.00 lei"}},{"$f":"(FacturiPrincipale[[#This Row],[Total detalii]]*(1+FacturiPrincipale[[#This Row],[Rata de impozitare]]))+FacturiPrincipale[[#This Row],[Altele]]-FacturiPrincipale[[#This Row],[Depozit]]","v":{"v":2190.225,"d":"2,190.23 lei"}}]
[null,"Totaluri",{"$f":"\"Total Invoices: \"&SUBTOTAL(103,FacturiPrincipale[Nr. factură])","v":"Total Invoices: 2"},{"$nulls":3},{"$f":"SUBTOTAL(109,FacturiPrincipale[Altele])","v":{"v":100,"d":"100.00 lei"}},{"$f":"SUBTOTAL(109,FacturiPrincipale[Depozit])","v":{"v":100,"d":"100.00 lei"}},{"$f":"SUBTOTAL(109,FacturiPrincipale[Total detalii])","v":{"v":7214,"d":"7,214.00 lei"}},{"$f":"SUBTOTAL(109,FacturiPrincipale[Total factură])","v":{"v":7845.2249999999985,"d":"7,845.23 lei"}}]

{"sheet":"Detalii factură","index":3,"n_rows":40,"n_cols":8,"rows_kept":40}
[]
[null,"Detalii factură"]
[null,"Descriere","Nr. factură","Nr. articol","Cantitate","Preț unitar","Reducere","Total"]
[null,"Factură 3-456-1 Data 1","3-456-1",1,1,{"v":1,"d":"1.00 lei"},{"v":1,"d":"1.00 lei"},{"$f":"(DetaliiFactură[[#This Row],[Cantitate]]*DetaliiFactură[[#This Row],[Preț unitar]])-DetaliiFactură[[#This Row],[Reducere]]","v":{"v":0,"d":"0.00 lei"}}]
[null,"Factură 3-456-1 Data 2","3-456-1",2,2,{"v":2,"d":"2.00 lei"},{"v":2,"d":"2.00 lei"},{"$f":"(DetaliiFactură[[#This Row],[Cantitate]]*DetaliiFactură[[#This Row],[Preț unitar]])-DetaliiFactură[[#This Row],[Reducere]]","v":{"v":2,"d":"2.00 lei"}}]
[null,"Factură 3-456-1 Data 3","3-456-1",3,3,{"v":3,"d":"3.00 lei"},{"v":3,"d":"3.00 lei"},{"$f":"(DetaliiFactură[[#This Row],[Cantitate]]*DetaliiFactură[[#This Row],[Preț unitar]])-DetaliiFactură[[#This Row],[Reducere]]","v":{"v":6,"d":"6.00 lei"}}]
[null,"Factură 3-456-1 Data 4","3-456-1",4,4,{"v":4,"d":"4.00 lei"},{"v":4,"d":"4.00 lei"},{"$f":"(DetaliiFactură[[#This Row],[Cantitate]]*DetaliiFactură[[#This Row],[Preț unitar]])-DetaliiFactură[[#This Row],[Reducere]]","v":{"v":12,"d":"12.00 lei"}}]
[null,"Factură 3-456-1 Data 5","3-456-1",5,5,{"v":5,"d":"5.00 lei"},{"v":5,"d":"5.00 lei"},{"$f":"(DetaliiFactură[[#This Row],[Cantitate]]*DetaliiFactură[[#This Row],[Preț unitar]])-DetaliiFactură[[#This Row],[Reducere]]","v":{"v":20,"d":"20.00 lei"}}]
[null,"Factură 3-456-1 Data 6","3-456-1",6,6,{"v":6,"d":"6.00 lei"},{"v":6,"d":"6.00 lei"},{"$f":"(DetaliiFactură[[#This Row],[Cantitate]]*DetaliiFactură[[#This Row],[Preț unitar]])-DetaliiFactură[[#This Row],[Reducere]]","v":{"v":30,"d":"30.00 lei"}}]
[null,"Factură 3-456-1 Data 7","3-456-1",7,7,{"v":7,"d":"7.00 lei"},{"v":7,"d":"7.00 lei"},{"$f":"(DetaliiFactură[[#This Row],[Cantitate]]*DetaliiFactură[[#This Row],[Preț unitar]])-DetaliiFactură[[#This Row],[Reducere]]","v":{"v":42,"d":"42.00 lei"}}]
[null,"Factură 3-456-1 Data 8","3-456-1",8,8,{"v":8,"d":"8.00 lei"},{"v":8,"d":"8.00 lei"},{"$f":"(DetaliiFactură[[#This Row],[Cantitate]]*DetaliiFactură[[#This Row],[Preț unitar]])-DetaliiFactură[[#This Row],[Reducere]]","v":{"v":56,"d":"56.00 lei"}}]
[null,"Factură 3-456-1 Data 9","3-456-1",9,9,{"v":9,"d":"9.00 lei"},{"v":9,"d":"9.00 lei"},{"$f":"(DetaliiFactură[[#This Row],[Cantitate]]*DetaliiFactură[[#This Row],[Preț unitar]])-DetaliiFactură[[#This Row],[Reducere]]","v":{"v":72,"d":"72.00 lei"}}]
[null,"Factură 3-456-1 Data 10","3-456-1",10,10,{"v":10,"d":"10.00 lei"},{"v":10,"d":"10.00 lei"},{"$f":"(DetaliiFactură[[#This Row],[Cantitate]]*DetaliiFactură[[#This Row],[Preț unitar]])-DetaliiFactură[[#This Row],[Reducere]]","v":{"v":90,"d":"90.00 lei"}}]
[null,"Factură 3-456-1 Data 11","3-456-1",11,11,{"v":11,"d":"11.00 lei"},{"v":11,"d":"11.00 lei"},{"$f":"(DetaliiFactură[[#This Row],[Cantitate]]*DetaliiFactură[[#This Row],[Preț unitar]])-DetaliiFactură[[#This Row],[Reducere]]","v":{"v":110,"d":"110.00 lei"}}]
[null,"Factură 3-456-1 Data 12","3-456-1",12,12,{"v":12,"d":"12.00 lei"},{"v":12,"d":"12.00 lei"},{"$f":"(DetaliiFactură[[#This Row],[Cantitate]]*DetaliiFactură[[#This Row],[Preț unitar]])-DetaliiFactură[[#This Row],[Reducere]]","v":{"v":132,"d":"132.00 lei"}}]
[null,"Factură 3-456-1 Data 13","3-456-1",13,13,{"v":13,"d":"13.00 lei"},{"v":13,"d":"13.00 lei"},{"$f":"(DetaliiFactură[[#This Row],[Cantitate]]*DetaliiFactură[[#This Row],[Preț unitar]])-DetaliiFactură[[#This Row],[Reducere]]","v":{"v":156,"d":"156.00 lei"}}]
[null,"Factură 3-456-1 Data 14","3-456-1",14,14,{"v":14,"d":"14.00 lei"},{"v":14,"d":"14.00 lei"},{"$f":"(DetaliiFactură[[#This Row],[Cantitate]]*DetaliiFactură[[#This Row],[Preț unitar]])-DetaliiFactură[[#This Row],[Reducere]]","v":{"v":182,"d":"182.00 lei"}}]
[null,"Factură 3-456-1 Data 15","3-456-1",15,15,{"v":15,"d":"15.00 lei"},{"v":15,"d":"15.00 lei"},{"$f":"(DetaliiFactură[[#This Row],[Cantitate]]*DetaliiFactură[[#This Row],[Preț unitar]])-DetaliiFactură[[#This Row],[Reducere]]","v":{"v":210,"d":"210.00 lei"}}]
[null,"Factură 3-456-1 Data 16","3-456-1",16,16,{"v":16,"d":"16.00 lei"},{"v":16,"d":"16.00 lei"},{"$f":"(DetaliiFactură[[#This Row],[Cantitate]]*DetaliiFactură[[#This Row],[Preț unitar]])-DetaliiFactură[[#This Row],[Reducere]]","v":{"v":240,"d":"240.00 lei"}}]
[null,"Factură 3-456-1 Data 17","3-456-1",17,17,{"v":17,"d":"17.00 lei"},{"v":17,"d":"17.00 lei"},{"$f":"(DetaliiFactură[[#This Row],[Cantitate]]*DetaliiFactură[[#This Row],[Preț unitar]])-DetaliiFactură[[#This Row],[Reducere]]","v":{"v":272,"d":"272.00 lei"}}]
[null,"Factură 3-456-1 Data 18","3-456-1",18,18,{"v":18,"d":"18.00 lei"},{"v":18,"d":"18.00 lei"},{"$f":"(DetaliiFactură[[#This Row],[Cantitate]]*DetaliiFactură[[#This Row],[Preț unitar]])-DetaliiFactură[[#This Row],[Reducere]]","v":{"v":306,"d":"306.00 lei"}}]
[null,"Factură 3-456-1 Data 19","3-456-1",19,19,{"v":19,"d":"19.00 lei"},{"v":19,"d":"19.00 lei"},{"$f":"(DetaliiFactură[[#This Row],[Cantitate]]*DetaliiFactură[[#This Row],[Preț unitar]])-DetaliiFactură[[#This Row],[Reducere]]","v":{"v":342,"d":"342.00 lei"}}]
[null,"Factură 3-456-1 Data 20","3-456-1",20,20,{"v":20,"d":"20.00 lei"},{"v":20,"d":"20.00 lei"},{"$f":"(DetaliiFactură[[#This Row],[Cantitate]]*DetaliiFactură[[#This Row],[Preț unitar]])-DetaliiFactură[[#This Row],[Reducere]]","v":{"v":380,"d":"380.00 lei"}}]
[null,"Factură 3-456-1 Data 21","3-456-1",21,21,{"v":21,"d":"21.00 lei"},{"v":21,"d":"21.00 lei"},{"$f":"(DetaliiFactură[[#This Row],[Cantitate]]*DetaliiFactură[[#This Row],[Preț unitar]])-DetaliiFactură[[#This Row],[Reducere]]","v":{"v":420,"d":"420.00 lei"}}]
[null,"Factură 3-456-1 Data 22","3-456-1",22,22,{"v":22,"d":"22.00 lei"},{"v":22,"d":"22.00 lei"},{"$f":"(DetaliiFactură[[#This Row],[Cantitate]]*DetaliiFactură[[#This Row],[Preț unitar]])-DetaliiFactură[[#This Row],[Reducere]]","v":{"v":462,"d":"462.00 lei"}}]
[null,"Factură 3-456-1 Data 23","3-456-1",23,23,{"v":23,"d":"23.00 lei"},{"v":23,"d":"23.00 lei"},{"$f":"(DetaliiFactură[[#This Row],[Cantitate]]*DetaliiFactură[[#This Row],[Preț unitar]])-DetaliiFactură[[#This Row],[Reducere]]","v":{"v":506,"d":"506.00 lei"}}]
[null,"Factură 3-456-1 Data 24","3-456-1",24,24,{"v":24,"d":"24.00 lei"},{"v":24,"d":"24.00 lei"},{"$f":"(DetaliiFactură[[#This Row],[Cantitate]]*DetaliiFactură[[#This Row],[Preț unitar]])-DetaliiFactură[[#This Row],[Reducere]]","v":{"v":552,"d":"552.00 lei"}}]
[null,"Factură 3-456-1 Data 25","3-456-1",25,25,{"v":25,"d":"25.00 lei"},{"v":25,"d":"25.00 lei"},{"$f":"(DetaliiFactură[[#This Row],[Cantitate]]*DetaliiFactură[[#This Row],[Preț unitar]])-DetaliiFactură[[#This Row],[Reducere]]","v":{"v":600,"d":"600.00 lei"}}]
[null,"Factură 3-456-2 Data 1","3-456-2","Z4567",39,{"v":5,"d":"5.00 lei"},null,{"$f":"(DetaliiFactură[[#This Row],[Cantitate]]*DetaliiFactură[[#This Row],[Preț unitar]])-DetaliiFactură[[#This Row],[Reducere]]","v":{"v":195,"d":"195.00 lei"}}]
[null,"Factură 3-456-2 Data 2","3-456-2","Z4568",40,{"v":4,"d":"4.00 lei"},{"v":5,"d":"5.00 lei"},{"$f":"(DetaliiFactură[[#This Row],[Cantitate]]*DetaliiFactură[[#This Row],[Preț unitar]])-DetaliiFactură[[#This Row],[Reducere]]","v":{"v":155,"d":"155.00 lei"}}]
[null,"Factură 3-456-2 Data 3","3-456-2","Z4569",30,{"v":6,"d":"6.00 lei"},{"v":7,"d":"7.00 lei"},{"$f":"(DetaliiFactură[[#This Row],[Cantitate]]*DetaliiFactură[[#This Row],[Preț unitar]])-DetaliiFactură[[#This Row],[Reducere]]","v":{"v":173,"d":"173.00 lei"}}]
[null,"Factură 3-456-2 Data 4","3-456-2","Z4570",40,{"v":7,"d":"7.00 lei"},null,{"$f":"(DetaliiFactură[[#This Row],[Cantitate]]*DetaliiFactură[[#This Row],[Preț unitar]])-DetaliiFactură[[#This Row],[Reducere]]","v":{"v":280,"d":"280.00 lei"}}]
[null,"Factură 3-456-2 Data 5","3-456-2","Z4571",10,{"v":4,"d":"4.00 lei"},null,{"$f":"(DetaliiFactură[[#This Row],[Cantitate]]*DetaliiFactură[[#This Row],[Preț unitar]])-DetaliiFactură[[#This Row],[Reducere]]","v":{"v":40,"d":"40.00 lei"}}]
[null,"Factură 3-456-2 Data 6","3-456-2","Z4572",5,{"v":8,"d":"8.00 lei"},null,{"$f":"(DetaliiFactură[[#This Row],[Cantitate]]*DetaliiFactură[[#This Row],[Preț unitar]])-DetaliiFactură[[#This Row],[Reducere]]","v":{"v":40,"d":"40.00 lei"}}]
[null,"Factură 3-456-2 Data 7","3-456-2","Z4573",70,{"v":6,"d":"6.00 lei"},null,{"$f":"(DetaliiFactură[[#This Row],[Cantitate]]*DetaliiFactură[[#This Row],[Preț unitar]])-DetaliiFactură[[#This Row],[Reducere]]","v":{"v":420,"d":"420.00 lei"}}]
[null,"Factură 3-456-2 Data 8","3-456-2","Z4574",25,{"v":4,"d":"4.00 lei"},null,{"$f":"(DetaliiFactură[[#This Row],[Cantitate]]*DetaliiFactură[[#This Row],[Preț unitar]])-DetaliiFactură[[#This Row],[Reducere]]","v":{"v":100,"d":"100.00 lei"}}]
[null,"Factură 3-456-2 Data 9","3-456-2","Z4575",5,{"v":7,"d":"7.00 lei"},{"v":3,"d":"3.00 lei"},{"$f":"(DetaliiFactură[[#This Row],[Cantitate]]*DetaliiFactură[[#This Row],[Preț unitar]])-DetaliiFactură[[#This Row],[Reducere]]","v":{"v":32,"d":"32.00 lei"}}]
[null,"Factură 3-456-2 Data 10","3-456-2","Z4576",80,{"v":1,"d":"1.00 lei"},null,{"$f":"(DetaliiFactură[[#This Row],[Cantitate]]*DetaliiFactură[[#This Row],[Preț unitar]])-DetaliiFactură[[#This Row],[Reducere]]","v":{"v":80,"d":"80.00 lei"}}]
[null,"Factură 3-456-2 Data 11","3-456-2","Z4577",65,{"v":7,"d":"7.00 lei"},null,{"$f":"(DetaliiFactură[[#This Row],[Cantitate]]*DetaliiFactură[[#This Row],[Preț unitar]])-DetaliiFactură[[#This Row],[Reducere]]","v":{"v":455,"d":"455.00 lei"}}]
[null,"Factură 3-456-2 Data 12","3-456-2","Z4578",44,{"v":1,"d":"1.00 lei"},null,{"$f":"(DetaliiFactură[[#This Row],[Cantitate]]*DetaliiFactură[[#This Row],[Preț unitar]])-DetaliiFactură[[#This Row],[Reducere]]","v":{"v":44,"d":"44.00 lei"}}]

{"sheet":"Despre instrumentul de monitori","index":4,"n_rows":40,"n_cols":3,"rows_kept":40,"merged":[[3,1,3,7],[4,1,4,7],[5,1,5,7],[6,1,6,7],[7,2,7,7],[8,2,8,7],[9,2,9,7],[10,2,10,7],[11,2,11,7],[12,1,12,7],[13,2,13,3],[14,2,14,7],[15,1,15,7],[16,2,16,7],[17,2,17,7],[18,2,18,7],[19,2,19,7],[20,2,20,7],[21,2,21,7],[22,1,22,7],[23,1,23,7],[24,2,24,7],[25,2,25,7],[26,2,26,7],[27,2,27,7],[28,1,28,7],[29,1,29,7],[30,2,30,7],[31,2,31,7],[32,2,32,7],[33,2,33,7],[34,2,34,7],[36,2,36,7],[37,2,37,7],[38,2,38,7],[39,2,39,7]]}
[null,"Despre instrumentul de monitorizare a facturilor"]
[]
[]
[null,"Instrumentul de monitorizare a facturilor este proiectat pentru a ține un istoric al clienților, al facturilor și al detaliilor facturilor, astfel încât să puteți stoca mai multe facturi fără a crea mai multe fișiere. De asemenea, puteți utiliza acest instrument de monitorizare a facturilor pentru a analiza datele despre facturile anterioare. De exemplu, puteți să vizualizați toate facturile pentru un client, pentru un anumit proiect sau să vizualizați toate facturile de luna trecută, de anul trecut și multe altele."]
[null,"Înainte de a începe, uitați-vă la datele eșantion furnizate. În foaia Factură, dacă selectați celula din dreapta Nr. factură (celula L8) va apărea o listă verticală. Selectați săgeata verticală, apoi alegeți o factură eșantion. Observați cum se modifică automat toate informațiile despre factură, pentru a reflecta factura selectată. Acum uitați-vă la foile Clienți, Facturi - principal și Detalii facturi. Fiecare dintre aceste foi furnizează informații către foaia Factură și orice modificări faceți se actualizează automat. "]
[null,"Cum încep ?"]
[null,"Modificați foaia Factură prin următorii pași, astfel încât să reflecte informațiile despre firma dvs.:"]
[null,"1.","Navigați la foaia Factură  și pe fila Revizuire, în grupul Protejare, selectați Deprotejare foaie. "]
[null,null,"Notă: Foaia Factură este protejată pentru a evita modificările neintenționate, deoarece, după cum am menționat anterior, majoritatea datelor din această foaie sunt trase din toate celelalte foi ale registrului de lucru. "]
[null,"2.","Particularizarea antetului facturii se face introducând numele firmei, adresa poștală, localitatea, cod poștal, adresa de e-mail, site-ul web și așa mai departe. În partea de jos a facturii (rândul 43), se modifică instrucțiunile de plată. "]
[null,null,"Important! Nu modificați informațiile de facturare Toate aceste celule au formule care vor actualiza automat factura, așa cum se menționează în secțiunea Despre instrumentul de monitorizare a facturilor.  "]
[null,"3.","(Opțional) Modificați culorile din întregul registru de lucru: În fila Aspect Pagină, în grupul Teme, selectați Culori și alegeți alt set de culori al temei din galeria de culori. "]
[null,"Sfat: Creați un set de culori al temei particularizat care să se asorteze cu sigla firmei! Pentru a face acest lucru, în fila Aspect Pagină, în grupul Teme, selectați Culori, apoi selectați Particularizare culori. Pentru mai multe informații despre crearea unui set de culori particularizat, vizualizați următorul subiect de ajutor: "]
[null,null,"Particularizarea unei teme de document."]
[null,"4.","După ce ați efectuat modificările dorite, reveniți la foaia Factură și, pe fila Revizuire, în grupul Modificări, selectați Protejare foaie, apoi selectați OK. Atunci când foaia Factură este protejată, singura celulă pe care o puteți selecta este celula cu lista verticală Nr. factură."]
[null,"Cum creez o factură?"]
[null,"1.","În foaia Clienți, introduceți informații despre clienți, cum ar fi numele și adresa firmei. Rețineți că Nr. firmă este o intrare importantă, deoarece furnizează un identificator unic pentru fiecare firmă utilizată în instrumentul de monitorizare a facturilor. De asemenea, rețineți că trebuie să adăugați o firmă doar o singură dată. Pentru facturile ulterioare către aceeași firmă, acest pas nu mai este necesar. "]
[null,null,"Notă: Dacă atribuiți același număr mai multor firme sau introduceți același nume de firmă de mai multe ori, intrările vor deveni roșii pentru a vă alerta cu privire la duplicare. "]
[null,"2.","În foaia Facturi - principal, introduceți informațiile principale ale facturii, cum ar fi Nr. factură, Data facturii și Descrierea proiectului. La fel ca în cazul Nr. firmă, Nr. factură este o intrare importantă, deoarece furnizează un identificator unic pentru fiecare factură și este utilizat în tot Instrumentul de monitorizare a facturilor. O altă intrare importantă este firma. Atunci când selectați o firmă din lista verticală, factura va fi asociată cu acea firmă. Apoi, atunci când selectați un Nr. factură pe foaia Factură, informațiile despre firmă precum numele și adresa firmei, vor apărea automat în Factură."]
[null,null,"Notă: Dacă atribuiți același număr mai multor facturi, intrările vor deveni roșii pentru a vă alerta cu privire la duplicare. "]
[null,"3.","În foaia Detalii factură, introduceți detaliile facturii, cum ar fi o descriere a articolului, numărul articolului, cantitate și preț unitar. Lista verticală din Factură furnizează o listă de facturi pe care le-ați introdus anterior în foaia Facturi - principal pentru a facilita introducerea datelor. La fel ca în cazul Nr. firmă de la pasul anterior, Nr.factură asociază articolul detaliat cu o anumită factură. Atunci când selectați un număr de factură din foaia Factură de la lista verticală Nr. factură, vor apărea articolele detaliate din acea factură."]
[null,null,"Notă: Există o limită de 25 de articole pe factură. Dacă se adaugă mai mult de 25 de articole, toate intrările respective vor deveni roșii pentru a vă alerta cu privire la această limitare. Dacă aveți de facturat mai mult de 25 de articole, va trebui să creați o a doua factură. "]
[null,"Cum adaug clienți, facturi și detalii despre facturi?"]
[null,"Datele despre Clienți, Facturi și Detalii despre facturi sunt stocate în tabele Excel. Atunci când adăugați un rând nou la un tabel, rândul va fi formatat automat și toate calculele vor fi copiate. Pentru a adăuga rânduri noi de tabel, alegeți una dintre următoarele:"]
[null,"● ","Dacă tabelul nu are un rând de Total, începeți să tastați sub tabel și acesta se va extinde automat atunci când apăsați tasta Enter sau Tab."]
[null,"● ","Plasați indicatorul de celulă în ultima celulă de deasupra rândului de Total, de exemplu în tabelul Facturi, în celula cu Note de la ultima factură, apoi apăsați tasta Tab."]
[null,"● ","Pe fila Pornire, în grupul Celule, selectați Inserare, apoi selectați Rând deasupra sau Rând dedesubt. "]
[null,"● ","În colțul din dreapta jos al tabelului, plasați mouse-ul pe ghidajul de dimensionare a tabelului și glisați în jos pentru a mări numărul de rânduri de tabel disponibile."]
[null,"Cum analizez detaliile facturii?"]
[null,"Așa cum se menționează în secțiunea Despre instrumentul de monitorizare a facturilor, după ce introduceți mai multe facturi, puteți vedea o listă cu toate facturile pentru un anumit client, pentru un anumit proiect, pentru o anumită perioadă și multe altele. Acest tip de analiză se realizează utilizând un filtru care vă permite să restrângeți rapid o listă de date. Pentru a accesa un filtru în tabelele Clienți, Facturi sau Detalii despre facturi, selectați săgeata verticală de lângă orice nume de câmp din tabele. Va apărea un panou de filtrare care oferă o varietate de opțiuni de filtrare. Iată câteva exemple de filtrare pentru a vă ajuta să începeți:"]
[null,"● ","Pentru a vedea suma totală pe care i-ați facturat-o unui anumit client: În foaia Facturi - principal, în partea dreaptă a câmpului Nr. firmă, selectați săgeata verticală. În panoul de filtrare, faceți clic pe Selectare totală pentru a deselecta toate firmele, alegeți firma dorită, apoi selectați OK. "]
[null,null,"Sfat: În panoul Filtrare puteți, de asemenea, să tastați numele clientului în caseta text Căutare pentru a căuta rapid în lista disponibilă."]
[null,"● ","Pentru a vedea toate facturile pentru un anumit client și pentru un anumit proiect(e): Începeți prin a filtra după clientul dorit utilizând pașii de la exemplul anterior. Apoi, în partea dreapta Nr. proiect, selectați săgeata verticală. În panoul de filtrare, selectați proiectul sau proiectele dorite, apoi selectați OK. "]
[null,"● ","Pentru a vedea toate facturile de luna precedentă: În foaia Facturi - principal, în partea dreaptă a câmpului Data facturii, selectați săgeata verticală, alegeți filtre de dată, apoi selectați luna trecută."]
[null,"● ","Pentru a vedea toți clienții cu același prefix zonal: În foaia Clienți, în partea dreaptă a câmpului Telefon, selectați săgeata verticală. În panoul de filtrare, faceți clic în caseta text Căutare, tastați prefixul, apoi selectați OK. "]
[null,"Sfaturi pentru filtrare"]
[null,"● ","Dacă tabelul are un rând de total, precum tabelul Clienți sau Facturi, totalurile calculate vor reflecta doar lista filtrată."]
[null,"● ","Pentru a regla cu precizie rezultatele, folosiți filtre multiple pe un câmp sau pe mai multe câmpuri."]
[null,"● ","Pentru a șterge un singur filtru, selectați săgeata verticală de la o coloană filtrată anterior, apoi selectați Golire filtru la <nume câmp>."]
[null,"● ","Pentru a șterge mai multe filtre în același timp, plasați indicatorul de celulă în tabel, apoi în fila Pornire, în grupul Editare selectați Sortare și filtrare, apoi selectați Golire."]